[Event "*** SCC Grand Prix: Titled Tuesday Blitz"]
[Site "Chess.com"]
[Date "2020.06.02"]
[Round "2"]
[White "vitnik2020"]
[Black "RaunakSadhwani2005"]
[Result "0-1"]
[WhiteElo "2332"]
[BlackElo "2878"]
[TimeControl "180+1"]
[EndTime "10:14:30 PDT"]
[Termination "RaunakSadhwani2005 won by resignation"]

1. e4 {[%clk 0:03:00.9]} 1... c6 {[%clk 0:03:00]} 2. d4 {[%clk 0:02:59.7]} 2...
d5 {[%clk 0:03:00.9]} 3. e5 {[%clk 0:02:59.5]} 3... Bf5 {[%clk 0:03:00.3]} 4. c4
{[%clk 0:02:58.4]} 4... e6 {[%clk 0:03:00.1]} 5. Nc3 {[%clk 0:02:57.4]} 5... Ne7
{[%clk 0:02:54.6]} 6. a3 {[%clk 0:02:55.5]} 6... Nd7 {[%clk 0:02:54.5]} 7. c5
{[%clk 0:02:54.2]} 7... h6 {[%clk 0:02:54.6]} 8. b4 {[%clk 0:02:44.8]} 8... Bh7
{[%clk 0:02:54.9]} 9. Nf3 {[%clk 0:02:39.9]} 9... Nf5 {[%clk 0:02:52.9]} 10. Bd3
{[%clk 0:02:32.4]} 10... Be7 {[%clk 0:02:51.1]} 11. O-O {[%clk 0:02:29.8]} 11...
h5 {[%clk 0:02:50.8]} 12. b5 {[%clk 0:02:08.3]} 12... g5 {[%clk 0:02:50]} 13.
bxc6 {[%clk 0:02:06]} 13... bxc6 {[%clk 0:02:50.9]} 14. Ne2 {[%clk 0:02:01.4]}
14... g4 {[%clk 0:02:50.7]} 15. Ne1 {[%clk 0:01:52.6]} 15... h4 {[%clk 0:02:47]}
16. f3 {[%clk 0:01:38.7]} 16... g3 {[%clk 0:02:43.1]} 17. hxg3 {[%clk
0:01:30.2]} 17... Nxg3 {[%clk 0:02:30]} 18. Nxg3 {[%clk 0:01:27.3]} 18... hxg3
{[%clk 0:02:28.3]} 19. Bf4 {[%clk 0:01:26.3]} 19... Bxc5 {[%clk 0:02:16.9]} 20.
dxc5 {[%clk 0:01:00.6]} 20... Bxd3 {[%clk 0:02:11.7]} 21. Nxd3 {[%clk
0:00:49.7]} 21... Rh1+ {[%clk 0:02:09.4]} 0-1

[Event "*** SCC Grand Prix: Titled Tuesday Blitz"]
[Site "Chess.com"]
[Date "2020.06.02"]
[Round "2"]
[White "Happy1712Drummer"]
[Black "secretsuperstar7"]
[Result "1-0"]
[WhiteElo "2438"]
[BlackElo "2214"]
[TimeControl "180+1"]
[EndTime "10:14:40 PDT"]
[Termination "Happy1712Drummer won by resignation"]

1. Nf3 {[%clk 0:02:58]} 1... d5 {[%clk 0:02:58.4]} 2. d4 {[%clk 0:02:57]} 2...
Nf6 {[%clk 0:02:57.6]} 3. c4 {[%clk 0:02:56.6]} 3... e6 {[%clk 0:02:55.2]} 4.
Nc3 {[%clk 0:02:55]} 4... Bb4 {[%clk 0:02:41.7]} 5. cxd5 {[%clk 0:02:51.5]} 5...
exd5 {[%clk 0:02:40.9]} 6. Bg5 {[%clk 0:02:51.2]} 6... h6 {[%clk 0:02:38.5]} 7.
Bxf6 {[%clk 0:02:48.9]} 7... Qxf6 {[%clk 0:02:37.7]} 8. Rc1 {[%clk 0:02:48]}
8... O-O {[%clk 0:02:34.7]} 9. e3 {[%clk 0:02:41.2]} 9... c6 {[%clk 0:02:32.6]}
10. Be2 {[%clk 0:02:40.5]} 10... Bf5 {[%clk 0:02:30.6]} 11. O-O {[%clk
0:02:39.3]} 11... Bd6 {[%clk 0:02:16.6]} 12. a3 {[%clk 0:02:31.9]} 12... Nd7
{[%clk 0:02:15.1]} 13. Na4 {[%clk 0:02:26.4]} 13... Qe7 {[%clk 0:01:42.7]} 14.
b4 {[%clk 0:02:23.1]} 14... Nf6 {[%clk 0:01:41.2]} 15. Nd2 {[%clk 0:02:17.4]}
15... Ne4 {[%clk 0:01:23.7]} 16. Nxe4 {[%clk 0:02:13.3]} 16... Bxe4 {[%clk
0:01:21.7]} 17. Nc5 {[%clk 0:01:58.7]} 17... Qh4 {[%clk 0:01:12.1]} 18. g3
{[%clk 0:01:49.4]} 18... Qh3 {[%clk 0:01:09.7]} 19. Nxe4 {[%clk 0:01:46.5]}
19... dxe4 {[%clk 0:01:07.7]} 20. Bg4 {[%clk 0:01:46.5]} 1-0

[Event "*** SCC Grand Prix: Titled Tuesday Blitz"]
[Site "Chess.com"]
[Date "2020.06.02"]
[Round "2"]
[White "exoticprincess"]
[Black "x-3738459472"]
[Result "1-0"]
[WhiteElo "2820"]
[BlackElo "2528"]
[TimeControl "180+1"]
[EndTime "10:14:41 PDT"]
[Termination "exoticprincess won by resignation"]

1. d4 {[%clk 0:03:00.9]} 1... Nf6 {[%clk 0:02:59.2]} 2. c4 {[%clk 0:02:56.8]}
2... c5 {[%clk 0:02:58.7]} 3. d5 {[%clk 0:02:56.7]} 3... e5 {[%clk 0:02:58.7]}
4. Nc3 {[%clk 0:02:57.3]} 4... d6 {[%clk 0:02:58.8]} 5. e4 {[%clk 0:02:57.7]}
5... Be7 {[%clk 0:02:58.6]} 6. Bd3 {[%clk 0:02:58.2]} 6... Nbd7 {[%clk
0:02:58.8]} 7. Nge2 {[%clk 0:02:58.6]} 7... h5 {[%clk 0:02:59]} 8. O-O {[%clk
0:02:58.7]} 8... h4 {[%clk 0:02:59]} 9. Kh1 {[%clk 0:02:58.6]} 9... Nh5 {[%clk
0:02:58.7]} 10. a3 {[%clk 0:02:55.1]} 10... Bg5 {[%clk 0:02:57.5]} 11. b4 {[%clk
0:02:54.9]} 11... Qf6 {[%clk 0:02:50.5]} 12. Nb5 {[%clk 0:02:47.2]} 12... O-O
{[%clk 0:02:43.9]} 13. Bxg5 {[%clk 0:02:46.3]} 13... Qxg5 {[%clk 0:02:43.4]} 14.
Nxd6 {[%clk 0:02:47.2]} 14... Ndf6 {[%clk 0:02:38.8]} 15. Nxc8 {[%clk
0:02:46.7]} 15... Raxc8 {[%clk 0:02:38.3]} 16. f3 {[%clk 0:02:44]} 16... Qe3
{[%clk 0:02:31.4]} 17. Ra2 {[%clk 0:02:36.3]} 17... b5 {[%clk 0:02:22.4]} 18.
cxb5 {[%clk 0:02:23.6]} 18... c4 {[%clk 0:02:22.5]} 19. Bb1 {[%clk 0:02:23.7]}
19... h3 {[%clk 0:02:16.6]} 20. g3 {[%clk 0:02:20.4]} 20... c3 {[%clk
0:02:08.9]} 21. Qc1 {[%clk 0:02:19.4]} 21... Qb6 {[%clk 0:02:08.7]} 22. a4
{[%clk 0:02:19.8]} 22... a6 {[%clk 0:02:06.2]} 23. Bd3 {[%clk 0:02:20.1]} 23...
axb5 {[%clk 0:02:06.3]} 24. Bxb5 {[%clk 0:02:19.4]} 24... Rc7 {[%clk 0:01:55.5]}
25. Rc2 {[%clk 0:02:18.6]} 25... Rfc8 {[%clk 0:01:54.7]} 26. Rxc3 {[%clk
0:02:16.8]} 26... Rxc3 {[%clk 0:01:54.5]} 27. Nxc3 {[%clk 0:02:17.7]} 27... Qd4
{[%clk 0:01:46.8]} 28. Ne2 {[%clk 0:02:11.7]} 28... Rxc1 {[%clk 0:01:39.4]} 29.
Nxd4 {[%clk 0:02:11.7]} 29... Rxf1+ {[%clk 0:01:39.5]} 30. Bxf1 {[%clk
0:02:12.6]} 30... exd4 {[%clk 0:01:40.3]} 31. a5 {[%clk 0:02:13.3]} 31... Nd7
{[%clk 0:01:35.7]} 32. b5 {[%clk 0:02:12.9]} 32... Nhf6 {[%clk 0:01:33.4]} 33.
b6 {[%clk 0:02:12.2]} 33... Ne8 {[%clk 0:01:24.1]} 34. Bb5 {[%clk 0:02:11.4]}
1-0

[Event "*** SCC Grand Prix: Titled Tuesday Blitz"]
[Site "Chess.com"]
[Date "2020.06.02"]
[Round "2"]
[White "Rakesh"]
[Black "stanyga"]
[Result "0-1"]
[WhiteElo "2332"]
[BlackElo "2646"]
[TimeControl "180+1"]
[EndTime "10:14:41 PDT"]
[Termination "stanyga won by resignation"]

1. e4 {[%clk 0:03:00.9]} 1... c5 {[%clk 0:02:58.1]} 2. c3 {[%clk 0:03:01]} 2...
Nf6 {[%clk 0:02:56.5]} 3. e5 {[%clk 0:03:01.2]} 3... Nd5 {[%clk 0:02:56.4]} 4.
d4 {[%clk 0:03:02.1]} 4... d6 {[%clk 0:02:48.8]} 5. Nf3 {[%clk 0:03:03]} 5...
cxd4 {[%clk 0:02:43.4]} 6. Bc4 {[%clk 0:03:03.9]} 6... Nb6 {[%clk 0:02:41.9]} 7.
Bb3 {[%clk 0:02:57.4]} 7... Nc6 {[%clk 0:02:32]} 8. exd6 {[%clk 0:02:44.1]} 8...
Qxd6 {[%clk 0:02:28.4]} 9. cxd4 {[%clk 0:02:41.9]} 9... Be6 {[%clk 0:02:26.9]}
10. O-O {[%clk 0:02:40.1]} 10... Bxb3 {[%clk 0:02:25]} 11. axb3 {[%clk
0:02:38.7]} 11... e6 {[%clk 0:02:24.4]} 12. Nc3 {[%clk 0:02:36.5]} 12... Be7
{[%clk 0:02:21.2]} 13. Nb5 {[%clk 0:02:35.7]} 13... Qd7 {[%clk 0:02:17.3]} 14.
Ne5 {[%clk 0:02:35.9]} 14... Nxe5 {[%clk 0:02:16.4]} 15. dxe5 {[%clk 0:02:36.8]}
15... Qxb5 {[%clk 0:02:15.9]} 16. Qg4 {[%clk 0:02:34.9]} 16... Qxe5 {[%clk
0:02:09.2]} 17. Bf4 {[%clk 0:02:33.7]} 17... Qf6 {[%clk 0:02:02.8]} 18. Be3
{[%clk 0:02:27.5]} 18... O-O {[%clk 0:02:00.5]} 19. h4 {[%clk 0:02:26.7]} 19...
Qxh4 {[%clk 0:01:51.1]} 20. Qf3 {[%clk 0:02:26.9]} 20... Nd5 {[%clk 0:01:49.1]}
21. Ra4 {[%clk 0:02:25.5]} 21... Qf6 {[%clk 0:01:44.6]} 22. Qg3 {[%clk 0:02:25]}
22... Nxe3 {[%clk 0:01:43.3]} 23. fxe3 {[%clk 0:02:25.9]} 23... Qxb2 {[%clk
0:01:43]} 24. Rg4 {[%clk 0:02:23.2]} 24... Rac8 {[%clk 0:01:37.9]} 25. Rf2
{[%clk 0:02:13.1]} 25... Qa1+ {[%clk 0:01:34.9]} 26. Kh2 {[%clk 0:01:59.6]}
26... Rc1 {[%clk 0:01:32.7]} 27. Qf4 {[%clk 0:01:51.3]} 27... f5 {[%clk
0:01:28.7]} 28. Qg3 {[%clk 0:01:43.2]} 0-1

[Event "*** SCC Grand Prix: Titled Tuesday Blitz"]
[Site "Chess.com"]
[Date "2020.06.02"]
[Round "2"]
[White "tgpgoat"]
[Black "AbdulovOrkhan"]
[Result "0-1"]
[WhiteElo "2093"]
[BlackElo "2384"]
[TimeControl "180+1"]
[EndTime "10:14:45 PDT"]
[Termination "AbdulovOrkhan won by resignation"]

1. e4 {[%clk 0:01:50.6]} 1... g6 {[%clk 0:02:26.6]} 2. d4 {[%clk 0:01:48.3]}
2... Bg7 {[%clk 0:02:27.5]} 3. Nc3 {[%clk 0:01:47.4]} 3... c6 {[%clk 0:02:28.4]}
4. Be3 {[%clk 0:01:46.4]} 4... d5 {[%clk 0:02:28.5]} 5. exd5 {[%clk 0:01:45]}
5... cxd5 {[%clk 0:02:28.4]} 6. Bd3 {[%clk 0:01:43.3]} 6... Nc6 {[%clk
0:02:28.7]} 7. Nf3 {[%clk 0:01:43.4]} 7... h5 {[%clk 0:02:27.9]} 8. Ne2 {[%clk
0:01:39.5]} 8... Nh6 {[%clk 0:02:27.7]} 9. c3 {[%clk 0:01:39.1]} 9... Nf5 {[%clk
0:02:26.8]} 10. Bg5 {[%clk 0:01:38.7]} 10... O-O {[%clk 0:02:24.7]} 11. Ng3
{[%clk 0:01:38.2]} 11... Nxg3 {[%clk 0:02:22.6]} 12. hxg3 {[%clk 0:01:38.9]}
12... Qc7 {[%clk 0:02:22.3]} 13. Qc2 {[%clk 0:01:36.1]} 13... e5 {[%clk
0:02:22.2]} 14. dxe5 {[%clk 0:00:22.1]} 14... Nxe5 {[%clk 0:02:23.1]} 15. Nxe5
{[%clk 0:00:22]} 15... Qxe5+ {[%clk 0:02:23.5]} 16. Be3 {[%clk 0:00:21.1]} 16...
Bh6 {[%clk 0:02:23.4]} 17. Qd2 {[%clk 0:00:16.5]} 17... Re8 {[%clk 0:02:19]} 18.
Ke2 {[%clk 0:00:09.8]} 18... Bg4+ {[%clk 0:02:16.3]} 0-1

[Event "*** SCC Grand Prix: Titled Tuesday Blitz"]
[Site "Chess.com"]
[Date "2020.06.02"]
[Round "2"]
[White "Ginzburg_Yakov"]
[Black "btmilhome"]
[Result "1-0"]
[WhiteElo "2338"]
[BlackElo "1757"]
[TimeControl "180+1"]
[EndTime "10:14:46 PDT"]
[Termination "Ginzburg_Yakov won by resignation"]

1. e4 {[%clk 0:03:00.7]} 1... e6 {[%clk 0:02:59.8]} 2. d4 {[%clk 0:03:00.6]}
2... d5 {[%clk 0:03:00.7]} 3. Nc3 {[%clk 0:03:00.6]} 3... Nf6 {[%clk 0:02:59.9]}
4. Bg5 {[%clk 0:03:00]} 4... Be7 {[%clk 0:02:57.3]} 5. e5 {[%clk 0:02:59.8]}
5... Nfd7 {[%clk 0:02:55.8]} 6. h4 {[%clk 0:03:00.5]} 6... a6 {[%clk 0:02:12.1]}
7. Qg4 {[%clk 0:02:58.4]} 7... O-O {[%clk 0:02:08.2]} 8. Bh6 {[%clk 0:02:48.4]}
8... g6 {[%clk 0:02:03.5]} 9. Bxf8 {[%clk 0:02:48.1]} 9... Bxf8 {[%clk
0:02:02.3]} 10. h5 {[%clk 0:02:27.1]} 10... c5 {[%clk 0:02:00.6]} 11. hxg6
{[%clk 0:02:27.3]} 11... hxg6 {[%clk 0:02:01.5]} 12. Bd3 {[%clk 0:02:11.5]}
12... Bg7 {[%clk 0:02:00.3]} 13. Bxg6 {[%clk 0:02:05.5]} 13... fxg6 {[%clk
0:01:46.1]} 14. Qxe6+ {[%clk 0:02:04.8]} 14... Kf8 {[%clk 0:01:43.8]} 15. Qd6+
{[%clk 0:01:45.3]} 15... Qe7 {[%clk 0:01:39.2]} 16. Qxe7+ {[%clk 0:01:45.3]}
16... Kxe7 {[%clk 0:01:38.8]} 17. Nxd5+ {[%clk 0:01:46.2]} 17... Kf8 {[%clk
0:01:35.2]} 18. e6 {[%clk 0:01:35]} 18... Nf6 {[%clk 0:01:06.5]} 19. Nb6 {[%clk
0:01:34.1]} 1-0

[Event "*** SCC Grand Prix: Titled Tuesday Blitz"]
[Site "Chess.com"]
[Date "2020.06.02"]
[Round "2"]
[White "Perecke"]
[Black "Crazy_girl99"]
[Result "0-1"]
[WhiteElo "2169"]
[BlackElo "2418"]
[TimeControl "180+1"]
[EndTime "10:14:49 PDT"]
[Termination "Crazy_girl99 won by resignation"]

1. e4 {[%clk 0:03:00.9]} 1... e5 {[%clk 0:02:58.9]} 2. Nf3 {[%clk 0:03:01.3]}
2... Nc6 {[%clk 0:02:58.6]} 3. d4 {[%clk 0:03:01.9]} 3... exd4 {[%clk
0:02:58.4]} 4. Bc4 {[%clk 0:03:02.6]} 4... Bc5 {[%clk 0:02:57.6]} 5. c3 {[%clk
0:03:02]} 5... Nf6 {[%clk 0:02:58]} 6. cxd4 {[%clk 0:03:01.8]} 6... Bb4+ {[%clk
0:02:58.1]} 7. Bd2 {[%clk 0:03:02]} 7... Bxd2+ {[%clk 0:02:58.7]} 8. Nbxd2
{[%clk 0:03:02.9]} 8... d5 {[%clk 0:02:58.7]} 9. exd5 {[%clk 0:03:02.6]} 9...
Nxd5 {[%clk 0:02:59.3]} 10. O-O {[%clk 0:03:03.2]} 10... O-O {[%clk 0:02:58.2]}
11. h3 {[%clk 0:03:03.6]} 11... Nb6 {[%clk 0:02:54.8]} 12. d5 {[%clk 0:02:10.9]}
12... Ne7 {[%clk 0:02:53.1]} 13. Bd3 {[%clk 0:02:02.7]} 13... Nbxd5 {[%clk
0:02:39.2]} 14. Ne4 {[%clk 0:01:35.8]} 14... Nf4 {[%clk 0:02:32.7]} 15. Bc2
{[%clk 0:01:00.5]} 15... Bf5 {[%clk 0:02:26.5]} 16. Qe1 {[%clk 0:00:46.2]} 16...
Re8 {[%clk 0:02:17.9]} 17. Rd1 {[%clk 0:00:39.6]} 17... Ned5 {[%clk 0:02:13.9]}
18. Qe2 {[%clk 0:00:10.8]} 18... Nxe2+ {[%clk 0:02:10.4]} 0-1

[Event "*** SCC Grand Prix: Titled Tuesday Blitz"]
[Site "Chess.com"]
[Date "2020.06.02"]
[Round "2"]
[White "Kirill_Klukin"]
[Black "kingofthenil"]
[Result "1-0"]
[WhiteElo "2718"]
[BlackElo "2471"]
[TimeControl "180+1"]
[EndTime "10:14:59 PDT"]
[Termination "Kirill_Klukin won on time"]

1. d4 {[%clk 0:03:00.9]} 1... Nf6 {[%clk 0:01:57.6]} 2. Nf3 {[%clk 0:02:59.8]}
2... c5 {[%clk 0:01:56.1]} 3. e3 {[%clk 0:02:57.2]} 3... d5 {[%clk 0:01:56]} 4.
Be2 {[%clk 0:02:54.7]} 4... Nc6 {[%clk 0:01:43.2]} 5. O-O {[%clk 0:02:53.9]}
5... Bg4 {[%clk 0:01:40.6]} 6. a3 {[%clk 0:02:50.7]} 6... cxd4 {[%clk
0:01:34.5]} 7. exd4 {[%clk 0:02:51.6]} 7... e6 {[%clk 0:01:33.9]} 8. c3 {[%clk
0:02:51.5]} 8... Bd6 {[%clk 0:01:33.2]} 9. Bg5 {[%clk 0:02:51.3]} 9... h6 {[%clk
0:01:30.7]} 10. Bh4 {[%clk 0:02:50.9]} 10... O-O {[%clk 0:01:30.5]} 11. Nbd2
{[%clk 0:02:50.7]} 11... Be7 {[%clk 0:01:29.6]} 12. Re1 {[%clk 0:02:48.6]} 12...
Nd7 {[%clk 0:01:14.1]} 13. Bg3 {[%clk 0:02:47.7]} 13... Rc8 {[%clk 0:01:09.2]}
14. h3 {[%clk 0:02:45]} 14... Bh5 {[%clk 0:00:39.6]} 15. Nf1 {[%clk 0:02:43.5]}
15... Nb6 {[%clk 0:00:11]} 16. Ne3 {[%clk 0:02:40.7]} 16... Na5 {[%clk 0:00:11]}
17. Ne5 {[%clk 0:02:38.7]} 17... Bxe2 {[%clk 0:00:11.9]} 18. Qxe2 {[%clk
0:02:39.2]} 18... Nac4 {[%clk 0:00:12.8]} 19. N3xc4 {[%clk 0:02:37.8]} 19...
Nxc4 {[%clk 0:00:13.7]} 20. Nd3 {[%clk 0:02:30.2]} 20... Bd6 {[%clk 0:00:13.1]}
21. f4 {[%clk 0:02:26.1]} 21... Qb6 {[%clk 0:00:07.7]} 22. Kh2 {[%clk
0:02:23.6]} 22... a6 {[%clk 0:00:01.9]} 23. Rf1 {[%clk 0:02:23.3]} 1-0

[Event "*** SCC Grand Prix: Titled Tuesday Blitz"]
[Site "Chess.com"]
[Date "2020.06.02"]
[Round "2"]
[White "Siemba"]
[Black "rugbyclub"]
[Result "1-0"]
[WhiteElo "2386"]
[BlackElo "2099"]
[TimeControl "180+1"]
[EndTime "10:15:01 PDT"]
[Termination "Siemba won by checkmate"]

1. d4 {[%clk 0:03:00.9]} 1... d5 {[%clk 0:02:58.8]} 2. c4 {[%clk 0:03:01.4]}
2... e6 {[%clk 0:02:59]} 3. Nf3 {[%clk 0:03:02.2]} 3... c6 {[%clk 0:02:58]} 4.
g3 {[%clk 0:03:01.7]} 4... dxc4 {[%clk 0:02:56.6]} 5. Bg2 {[%clk 0:02:57.7]}
5... Nf6 {[%clk 0:02:56.7]} 6. Nc3 {[%clk 0:02:56.3]} 6... b5 {[%clk 0:02:56.3]}
7. Ne5 {[%clk 0:02:55.2]} 7... Nd5 {[%clk 0:02:54]} 8. O-O {[%clk 0:02:47.5]}
8... Bb7 {[%clk 0:02:51.9]} 9. a4 {[%clk 0:02:44.6]} 9... a6 {[%clk 0:02:49.4]}
10. e4 {[%clk 0:02:40]} 10... Nxc3 {[%clk 0:02:41]} 11. bxc3 {[%clk 0:02:40]}
11... Be7 {[%clk 0:02:41.7]} 12. Be3 {[%clk 0:02:21.5]} 12... Nd7 {[%clk
0:02:41]} 13. f4 {[%clk 0:02:12.1]} 13... Nxe5 {[%clk 0:02:34.2]} 14. fxe5
{[%clk 0:02:11]} 14... O-O {[%clk 0:02:34.1]} 15. Qg4 {[%clk 0:01:59.3]} 15...
Re8 {[%clk 0:02:25.2]} 16. Bh6 {[%clk 0:01:50.2]} 16... Bf8 {[%clk 0:02:25.1]}
17. Rxf7 {[%clk 0:01:31.1]} 17... Kxf7 {[%clk 0:02:17.9]} 18. Rf1+ {[%clk
0:01:31.2]} 18... Ke7 {[%clk 0:02:14.7]} 19. Bg5+ {[%clk 0:01:31.4]} 19... Kd7
{[%clk 0:02:14.5]} 20. Bxd8 {[%clk 0:01:32]} 20... Raxd8 {[%clk 0:02:14.4]} 21.
Rf7+ {[%clk 0:01:30.1]} 21... Kc8 {[%clk 0:02:11.2]} 22. axb5 {[%clk 0:00:52.6]}
22... cxb5 {[%clk 0:02:06.7]} 23. Qd1 {[%clk 0:00:47.5]} 23... b4 {[%clk
0:01:59.7]} 24. Qa4 {[%clk 0:00:46.1]} 24... b3 {[%clk 0:01:49.8]} 25. Qxc4+
{[%clk 0:00:45.5]} 25... Kb8 {[%clk 0:01:47.9]} 26. Qc7+ {[%clk 0:00:45.8]}
26... Ka8 {[%clk 0:01:48]} 27. Qxb7# {[%clk 0:00:46.7]} 1-0

[Event "*** SCC Grand Prix: Titled Tuesday Blitz"]
[Site "Chess.com"]
[Date "2020.06.02"]
[Round "2"]
[White "Machidon"]
[Black "Kobalia"]
[Result "0-1"]
[WhiteElo "2510"]
[BlackElo "2770"]
[TimeControl "180+1"]
[EndTime "10:15:03 PDT"]
[Termination "Kobalia won by resignation"]

1. d4 {[%clk 0:03:00]} 1... Nf6 {[%clk 0:02:59.6]} 2. c4 {[%clk 0:02:59.2]} 2...
g6 {[%clk 0:02:59.9]} 3. Nc3 {[%clk 0:02:59.5]} 3... Bg7 {[%clk 0:03:00.5]} 4.
e4 {[%clk 0:03:00.1]} 4... O-O {[%clk 0:03:01]} 5. Be2 {[%clk 0:03:00.8]} 5...
d6 {[%clk 0:03:01.5]} 6. Nf3 {[%clk 0:03:01.1]} 6... e5 {[%clk 0:03:01.2]} 7. d5
{[%clk 0:03:01.5]} 7... Na6 {[%clk 0:02:57.9]} 8. Bg5 {[%clk 0:03:00.8]} 8... h6
{[%clk 0:02:56.8]} 9. Bh4 {[%clk 0:03:01.1]} 9... Qe8 {[%clk 0:02:55.3]} 10. Nd2
{[%clk 0:03:00]} 10... Nh7 {[%clk 0:02:52.5]} 11. O-O {[%clk 0:02:56.1]} 11...
f5 {[%clk 0:02:52.1]} 12. f3 {[%clk 0:02:56.4]} 12... f4 {[%clk 0:02:50.8]} 13.
Bf2 {[%clk 0:02:54.7]} 13... g5 {[%clk 0:02:50.7]} 14. Rb1 {[%clk 0:02:53.6]}
14... h5 {[%clk 0:02:49.3]} 15. b4 {[%clk 0:02:53.3]} 15... Qg6 {[%clk
0:02:46.4]} 16. c5 {[%clk 0:02:07.7]} 16... g4 {[%clk 0:02:45.4]} 17. Bh4 {[%clk
0:01:53.7]} 17... Bf6 {[%clk 0:02:37.4]} 18. Qe1 {[%clk 0:01:36.7]} 18... Kh8
{[%clk 0:02:02.2]} 19. Nc4 {[%clk 0:01:29.7]} 19... Rg8 {[%clk 0:01:57.6]} 20.
cxd6 {[%clk 0:01:09.6]} 20... cxd6 {[%clk 0:01:56]} 21. Nb5 {[%clk 0:01:00.4]}
21... g3 {[%clk 0:01:52.9]} 22. hxg3 {[%clk 0:00:49.5]} 22... Bxh4 {[%clk
0:01:50.2]} 0-1

[Event "*** SCC Grand Prix: Titled Tuesday Blitz"]
[Site "Chess.com"]
[Date "2020.06.02"]
[Round "2"]
[White "Torrentec"]
[Black "MishkaFighter"]
[Result "1-0"]
[WhiteElo "2317"]
[BlackElo "2588"]
[TimeControl "180+1"]
[EndTime "10:15:05 PDT"]
[Termination "Torrentec won by checkmate"]

1. e4 {[%clk 0:03:00.9]} 1... Nf6 {[%clk 0:02:52.4]} 2. e5 {[%clk 0:03:00.7]}
2... Ne4 {[%clk 0:02:50.8]} 3. Nc3 {[%clk 0:03:01.6]} 3... d5 {[%clk 0:02:48.3]}
4. Nf3 {[%clk 0:03:00.3]} 4... c5 {[%clk 0:02:43.3]} 5. Bb5+ {[%clk 0:02:56.6]}
5... Nc6 {[%clk 0:02:42.2]} 6. d4 {[%clk 0:02:53.5]} 6... cxd4 {[%clk
0:02:40.5]} 7. Nxd4 {[%clk 0:02:52.6]} 7... Nxc3 {[%clk 0:02:40.7]} 8. bxc3
{[%clk 0:02:52.3]} 8... Bd7 {[%clk 0:02:38.7]} 9. O-O {[%clk 0:02:48.5]} 9... e6
{[%clk 0:02:36.5]} 10. Re1 {[%clk 0:02:46.5]} 10... Rc8 {[%clk 0:02:33.6]} 11.
Qg4 {[%clk 0:02:41.7]} 11... Nxd4 {[%clk 0:02:27.1]} 12. Bxd7+ {[%clk
0:02:39.8]} 12... Qxd7 {[%clk 0:02:28]} 13. cxd4 {[%clk 0:02:40.1]} 13... Rxc2
{[%clk 0:02:28.6]} 14. Be3 {[%clk 0:02:35.4]} 14... g6 {[%clk 0:02:24.6]} 15. h4
{[%clk 0:02:22.3]} 15... Be7 {[%clk 0:02:20.6]} 16. h5 {[%clk 0:02:21.4]} 16...
O-O {[%clk 0:02:19.8]} 17. Bh6 {[%clk 0:02:16.2]} 17... Rfc8 {[%clk 0:02:16.2]}
18. Re3 {[%clk 0:02:15.6]} 18... Qb5 {[%clk 0:02:08]} 19. Rf3 {[%clk 0:02:13]}
19... Rc1+ {[%clk 0:02:07.3]} 20. Bxc1 {[%clk 0:02:07.7]} 20... Qe2 {[%clk
0:01:47.1]} 21. Be3 {[%clk 0:02:01.5]} 21... Qb2 {[%clk 0:01:36.4]} 22. Rf1
{[%clk 0:01:50.6]} 22... Qxa2 {[%clk 0:01:35.6]} 23. Bh6 {[%clk 0:01:45]} 23...
Qa4 {[%clk 0:01:29.6]} 24. Qf4 {[%clk 0:01:42.5]} 24... Qe8 {[%clk 0:01:29.1]}
25. Bg5 {[%clk 0:01:41.9]} 25... Bb4 {[%clk 0:01:26.1]} 26. hxg6 {[%clk
0:01:37.1]} 26... hxg6 {[%clk 0:01:23.1]} 27. g3 {[%clk 0:01:37.1]} 27... a5
{[%clk 0:01:21.8]} 28. Bf6 {[%clk 0:01:36.2]} 28... Bf8 {[%clk 0:01:22.7]} 29.
Qh4 {[%clk 0:01:32.7]} 29... Bg7 {[%clk 0:01:22.9]} 30. Bxg7 {[%clk 0:01:32.6]}
30... Kxg7 {[%clk 0:01:23.8]} 31. Qf6+ {[%clk 0:01:32.5]} 31... Kg8 {[%clk
0:01:23.8]} 32. Kg2 {[%clk 0:01:32]} 32... Qd8 {[%clk 0:01:23.9]} 33. Qxf7+
{[%clk 0:01:31.3]} 33... Kh8 {[%clk 0:01:20.9]} 34. Rh1+ {[%clk 0:01:32.2]}
34... Qh4 {[%clk 0:01:21.3]} 35. Rxh4# {[%clk 0:01:30.9]} 1-0

[Event "*** SCC Grand Prix: Titled Tuesday Blitz"]
[Site "Chess.com"]
[Date "2020.06.02"]
[Round "2"]
[White "BakaPG"]
[Black "vanyakuba"]
[Result "1-0"]
[WhiteElo "2686"]
[BlackElo "2456"]
[TimeControl "180+1"]
[EndTime "10:15:16 PDT"]
[Termination "BakaPG won by resignation"]

1. e4 {[%clk 0:03:00.9]} 1... d5 {[%clk 0:03:00.2]} 2. exd5 {[%clk 0:03:00]}
2... Qxd5 {[%clk 0:03:01.1]} 3. Nc3 {[%clk 0:03:00.1]} 3... Qa5 {[%clk 0:03:01]}
4. d4 {[%clk 0:02:59.3]} 4... Nf6 {[%clk 0:03:01.3]} 5. Nf3 {[%clk 0:02:59.1]}
5... Bg4 {[%clk 0:03:01.7]} 6. h3 {[%clk 0:02:59.1]} 6... Bh5 {[%clk 0:03:01.9]}
7. g4 {[%clk 0:02:57.7]} 7... Bg6 {[%clk 0:03:02.2]} 8. Ne5 {[%clk 0:02:54.9]}
8... e6 {[%clk 0:03:02.2]} 9. h4 {[%clk 0:02:54.6]} 9... Bb4 {[%clk 0:03:00.6]}
10. h5 {[%clk 0:02:49.5]} 10... Be4 {[%clk 0:03:00.3]} 11. Rh3 {[%clk
0:02:49.1]} 11... Nbd7 {[%clk 0:02:47]} 12. Nc4 {[%clk 0:02:46.1]} 12... Qa6
{[%clk 0:02:08.3]} 13. Bd2 {[%clk 0:02:37.5]} 13... Bxc3 {[%clk 0:01:39.7]} 14.
Rxc3 {[%clk 0:02:31.7]} 14... Bd5 {[%clk 0:01:29.5]} 15. Bf4 {[%clk 0:02:18.7]}
15... Bxc4 {[%clk 0:00:48.9]} 16. Bxc4 {[%clk 0:02:16.2]} 16... Qc6 {[%clk
0:00:48.7]} 17. d5 {[%clk 0:01:59.3]} 17... exd5 {[%clk 0:00:32.5]} 18. Re3+
{[%clk 0:01:58.9]} 18... Kd8 {[%clk 0:00:32.7]} 19. Be2 {[%clk 0:01:55.6]} 19...
d4 {[%clk 0:00:21.8]} 20. Qxd4 {[%clk 0:01:53.2]} 20... Qh1+ {[%clk 0:00:21.3]}
21. Bf1 {[%clk 0:01:53.1]} 1-0